[Event "Titled Tuesday Blitz May 9 Late 2023"]
[White "Romero Ruscalleda, Josep"]
[Black "Volkov, Maksim"]
[WhiteFideId "2231859"]
[BlackFideId "54123070"]
[WhiteElo "2183"]
[BlackElo "2297"]
[Result "0-1"]
[Round "02"]
[TimeControl "180+2"]
[Date "2023.05.09"]
[WhiteClock "0:00:00"]
[BlackClock "0:00:11"]

1. e4 {[%clk 0:03:00]}  c5 {[%clk 0:02:58]} 2. c3 {[%clk 0:03:00]}  Nf6 {[%clk 0:02:57]} 3. e5 {[%clk 0:03:01]}  Nd5 {[%clk 0:02:57]} 4. Nf3 {[%clk 0:03:01]}  d6 {[%clk 0:02:57]} 5. Bc4 {[%clk 0:03:01]}  Nb6 {[%clk 0:02:55]} 6. e6 {[%clk 0:03:01]}  fxe6 {[%clk 0:02:31]} 7. Bb3 {[%clk 0:03:01]}  Nc6 {[%clk 0:02:25]} 8. O-O {[%clk 0:02:57]}  c4 {[%clk 0:02:17]} 9. Bc2 {[%clk 0:02:56]}  e5 {[%clk 0:02:18]} 10. Ng5 {[%clk 0:02:53]}  e6 {[%clk 0:02:10]} 11. Qh5+ {[%clk 0:02:32]}  Kd7 {[%clk 0:02:05]} 12. Qg4 {[%clk 0:02:12]}  Qe8 {[%clk 0:01:41]} 13. d3 {[%clk 0:01:42]}  cxd3 {[%clk 0:01:40]} 14. Bxd3 {[%clk 0:01:42]}  Kc7 {[%clk 0:01:38]} 15. Na3 {[%clk 0:01:40]}  a6 {[%clk 0:01:36]} 16. Nxh7 {[%clk 0:01:36]}  Nd5 {[%clk 0:01:24]} 17. Nxf8 {[%clk 0:01:26]}  Qxf8 {[%clk 0:01:24]} 18. Nc4 {[%clk 0:01:21]}  Bd7 {[%clk 0:01:21]} 19. Ne3 {[%clk 0:01:17]}  Nf6 {[%clk 0:01:18]} 20. Qg3 {[%clk 0:01:10]}  e4 {[%clk 0:01:14]} 21. Be2 {[%clk 0:01:02]}  Ne5 {[%clk 0:01:13]} 22. Rd1 {[%clk 0:00:58]}  Qe7 {[%clk 0:01:05]} 23. Nc4 {[%clk 0:00:53]}  Nxc4 {[%clk 0:01:02]} 24. Bxc4 {[%clk 0:00:53]}  Bc6 {[%clk 0:01:01]} 25. Rxd6 {[%clk 0:00:46]}  Nh5 {[%clk 0:00:40]} 26. Rxe6+ {[%clk 0:00:44]}  Nxg3 {[%clk 0:00:40]} 27. Rxe7+ {[%clk 0:00:44]}  Kd8 {[%clk 0:00:40]} 28. Rxg7 {[%clk 0:00:41]}  Nf5 {[%clk 0:00:41]} 29. Bg5+ {[%clk 0:00:39]}  Ke8 {[%clk 0:00:41]} 30. Rf7 {[%clk 0:00:35]}  Nd6 {[%clk 0:00:41]} 31. Re7+ {[%clk 0:00:35]}  Kf8 {[%clk 0:00:42]} 32. Bb3 {[%clk 0:00:28]}  Rh5 {[%clk 0:00:41]} 33. Re5 {[%clk 0:00:26]}  Kg7 {[%clk 0:00:26]} 34. Rd1 {[%clk 0:00:19]}  Ne8 {[%clk 0:00:24]} 35. Re7+ {[%clk 0:00:15]}  Kg6 {[%clk 0:00:24]} 36. h4 {[%clk 0:00:15]}  Rh7 {[%clk 0:00:23]} 37. Re6+ {[%clk 0:00:12]}  Kg7 {[%clk 0:00:22]} 38. Rd4 {[%clk 0:00:07]}  Kf8 {[%clk 0:00:22]} 39. Bd1 {[%clk 0:00:06]}  Rc8 {[%clk 0:00:21]} 40. Bg4 {[%clk 0:00:06]}  Rcc7 {[%clk 0:00:22]} 41. Re5 {[%clk 0:00:04]}  Rhf7 {[%clk 0:00:20]} 42. Be6 {[%clk 0:00:04]}  Rh7 {[%clk 0:00:19]} 43. h5 {[%clk 0:00:04]}  Rxh5 {[%clk 0:00:18]} 44. Bg4 {[%clk 0:00:02]}  Rhh7 {[%clk 0:00:18]} 45. Rf5+ {[%clk 0:00:02]}  Kg8 {[%clk 0:00:18]} 46. Rd8 {[%clk 0:00:01]}  Rhg7 {[%clk 0:00:18]} 47. Bh5 {[%clk 0:00:01]}  Kh7 {[%clk 0:00:10]} 48. Bxe8 {[%clk 0:00:00]}  Rg8 {[%clk 0:00:11]} 0-1


[Site "https://www.chess.com"]

[Event "Titled Tuesday Blitz May 9 Late 2023"]
[White "Seemann, Jakub"]
[Black "Harish, Neeraj"]
[WhiteFideId "21874697"]
[BlackFideId "30958130"]
[WhiteElo "2364"]
[BlackElo "1879"]
[Result "1-0"]
[Round "02"]
[TimeControl "180+2"]
[Date "2023.05.09"]
[WhiteClock "0:01:51"]
[BlackClock "0:00:14"]

1. c4 {[%clk 0:03:00]}  Nf6 {[%clk 0:02:56]} 2. Nc3 {[%clk 0:03:01]}  e6 {[%clk 0:02:51]} 3. e4 {[%clk 0:03:00]}  d5 {[%clk 0:02:48]} 4. e5 {[%clk 0:03:00]}  Ne4 {[%clk 0:02:47]} 5. cxd5 {[%clk 0:02:56]}  Nxc3 {[%clk 0:02:39]} 6. bxc3 {[%clk 0:02:55]}  exd5 {[%clk 0:02:40]} 7. d4 {[%clk 0:02:55]}  c5 {[%clk 0:02:38]} 8. Nf3 {[%clk 0:02:55]}  Nc6 {[%clk 0:02:37]} 9. Be2 {[%clk 0:02:51]}  Qb6 {[%clk 0:02:27]} 10. O-O {[%clk 0:02:51]}  Bg4 {[%clk 0:02:27]} 11. Be3 {[%clk 0:02:48]}  cxd4 {[%clk 0:02:21]} 12. Nxd4 {[%clk 0:02:49]}  Bxe2 {[%clk 0:02:14]} 13. Qxe2 {[%clk 0:02:50]}  Qc7 {[%clk 0:02:09]} 14. e6 {[%clk 0:02:46]}  f6 {[%clk 0:01:56]} 15. Qh5+ {[%clk 0:02:45]}  g6 {[%clk 0:01:55]} 16. Qxd5 {[%clk 0:02:45]}  Rd8 {[%clk 0:01:52]} 17. Qb3 {[%clk 0:02:40]}  Bd6 {[%clk 0:01:49]} 18. h3 {[%clk 0:02:39]}  a6 {[%clk 0:01:23]} 19. Rab1 {[%clk 0:02:37]}  b5 {[%clk 0:01:18]} 20. a4 {[%clk 0:02:37]}  bxa4 {[%clk 0:01:17]} 21. Qxa4 {[%clk 0:02:37]}  Rc8 {[%clk 0:01:15]} 22. Qxa6 {[%clk 0:02:15]}  O-O {[%clk 0:01:01]} 23. Rb7 {[%clk 0:02:04]}  Nb8 {[%clk 0:00:56]} 24. Qa7 {[%clk 0:01:59]}  Bc5 {[%clk 0:00:31]} 25. Rxc7 {[%clk 0:01:50]}  Bxa7 {[%clk 0:00:30]} 26. Rxa7 {[%clk 0:01:51]}  Rxc3 {[%clk 0:00:30]} 27. Rb1 {[%clk 0:01:50]}  Nc6 {[%clk 0:00:23]} 28. Nxc6 {[%clk 0:01:49]}  Rxc6 {[%clk 0:00:23]} 29. Rbb7 {[%clk 0:01:49]}  Re8 {[%clk 0:00:16]} 30. Rg7+ {[%clk 0:01:50]}  Kh8 {[%clk 0:00:15]} 31. Rxh7+ {[%clk 0:01:51]}  Kg8 {[%clk 0:00:15]} 32. Rag7+ {[%clk 0:01:51]}  Kf8 {[%clk 0:00:16]} 33. Bh6 {[%clk 0:01:51]}  Rexe6 {[%clk 0:00:14]} 34. Rh8# {[%clk 0:01:51]} 1-0


[Site "https://www.chess.com"]

[Event "Titled Tuesday Blitz May 9 Late 2023"]
[White "Koziorowicz, Michal"]
[Black "Boder, Jan"]
[WhiteFideId "21809194"]
[BlackFideId "16243226"]
[WhiteElo "2255"]
[BlackElo "2241"]
[Result "1/2-1/2"]
[Round "02"]
[TimeControl "180+2"]
[Date "2023.05.09"]
[WhiteClock "0:00:57"]
[BlackClock "0:00:11"]

1. e4 {[%clk 0:03:00]}  c5 {[%clk 0:02:56]} 2. Nf3 {[%clk 0:03:00]}  d6 {[%clk 0:02:53]} 3. Bb5+ {[%clk 0:03:01]}  Bd7 {[%clk 0:02:51]} 4. Bxd7+ {[%clk 0:03:01]}  Qxd7 {[%clk 0:02:52]} 5. O-O {[%clk 0:03:01]}  Nc6 {[%clk 0:02:51]} 6. c3 {[%clk 0:03:01]}  g6 {[%clk 0:02:26]} 7. d4 {[%clk 0:03:00]}  Bg7 {[%clk 0:02:26]} 8. Be3 {[%clk 0:02:54]}  Nf6 {[%clk 0:02:19]} 9. Nbd2 {[%clk 0:02:53]}  cxd4 {[%clk 0:02:15]} 10. Nxd4 {[%clk 0:02:44]}  O-O {[%clk 0:02:12]} 11. h3 {[%clk 0:02:43]}  Rac8 {[%clk 0:02:06]} 12. Re1 {[%clk 0:02:42]}  Rfd8 {[%clk 0:02:03]} 13. Nxc6 {[%clk 0:02:27]}  bxc6 {[%clk 0:02:00]} 14. Bd4 {[%clk 0:02:26]}  Qb7 {[%clk 0:01:57]} 15. Qb3 {[%clk 0:02:24]}  Rb8 {[%clk 0:01:49]} 16. Rad1 {[%clk 0:02:21]}  Nd7 {[%clk 0:01:34]} 17. Qxb7 {[%clk 0:01:59]}  Rxb7 {[%clk 0:01:33]} 18. b3 {[%clk 0:01:59]}  a5 {[%clk 0:01:18]} 19. Nc4 {[%clk 0:01:55]}  Ra8 {[%clk 0:01:10]} 20. f4 {[%clk 0:01:38]}  a4 {[%clk 0:01:09]} 21. b4 {[%clk 0:01:37]}  Bxd4+ {[%clk 0:01:05]} 22. Rxd4 {[%clk 0:01:36]}  c5 {[%clk 0:01:05]} 23. bxc5 {[%clk 0:01:36]}  Nxc5 {[%clk 0:01:06]} 24. e5 {[%clk 0:01:36]}  dxe5 {[%clk 0:01:00]} 25. Rxe5 {[%clk 0:01:37]}  Ne6 {[%clk 0:00:56]} 26. Rde4 {[%clk 0:01:37]}  Rc8 {[%clk 0:00:52]} 27. f5 {[%clk 0:01:37]}  gxf5 {[%clk 0:00:51]} 28. Rxf5 {[%clk 0:01:38]}  Rb1+ {[%clk 0:00:37]} 29. Kh2 {[%clk 0:01:38]}  Rc1 {[%clk 0:00:38]} 30. Ne5 {[%clk 0:01:34]}  f6 {[%clk 0:00:29]} 31. Nd3 {[%clk 0:01:22]}  Rd1 {[%clk 0:00:23]} 32. Rxe6 {[%clk 0:01:22]}  Rxd3 {[%clk 0:00:22]} 33. Rxe7 {[%clk 0:01:23]}  Rdxc3 {[%clk 0:00:15]} 34. Rxf6 {[%clk 0:01:23]}  R8c7 {[%clk 0:00:15]} 35. Re4 {[%clk 0:01:20]}  R3c4 {[%clk 0:00:14]} 36. Rff4 {[%clk 0:01:17]}  Rxe4 {[%clk 0:00:14]} 37. Rxe4 {[%clk 0:01:18]}  a3 {[%clk 0:00:11]} 38. Re3 {[%clk 0:01:17]}  Ra7 {[%clk 0:00:11]} 39. Rf3 {[%clk 0:01:17]}  Ra4 {[%clk 0:00:11]} 40. Kg3 {[%clk 0:01:17]}  Kg7 {[%clk 0:00:12]} 41. Kf2 {[%clk 0:01:17]}  Kg6 {[%clk 0:00:13]} 42. Ke2 {[%clk 0:01:17]}  Kg5 {[%clk 0:00:12]} 43. Kd2 {[%clk 0:01:16]}  Rb4 {[%clk 0:00:11]} 44. Rxa3 {[%clk 0:01:10]}  Rb2+ {[%clk 0:00:11]} 45. Ke3 {[%clk 0:01:10]}  Rxg2 {[%clk 0:00:12]} 46. Kf3 {[%clk 0:01:10]}  Rb2 {[%clk 0:00:10]} 47. Kg3 {[%clk 0:01:11]}  h5 {[%clk 0:00:10]} 48. Ra5+ {[%clk 0:01:11]}  Kg6 {[%clk 0:00:10]} 49. a3 {[%clk 0:01:11]}  Rc2 {[%clk 0:00:09]} 50. Ra4 {[%clk 0:01:09]}  Kg5 {[%clk 0:00:07]} 51. Ra5+ {[%clk 0:01:08]}  Kg6 {[%clk 0:00:07]} 52. a4 {[%clk 0:00:59]}  Rc3+ {[%clk 0:00:07]} 53. Kg2 {[%clk 0:00:58]}  Rc2+ {[%clk 0:00:08]} 54. Kg1 {[%clk 0:00:56]}  Rc1+ {[%clk 0:00:08]} 55. Kf2 {[%clk 0:00:56]}  Rc2+ {[%clk 0:00:08]} 56. Ke3 {[%clk 0:00:56]}  Rc3+ {[%clk 0:00:08]} 57. Kf4 {[%clk 0:00:56]}  Rxh3 {[%clk 0:00:07]} 58. Ra6+ {[%clk 0:00:57]}  Kf7 {[%clk 0:00:05]} 59. a5 {[%clk 0:00:49]}  Ke7 {[%clk 0:00:05]} 60. Ke5 {[%clk 0:00:49]}  Kd7 {[%clk 0:00:04]} 61. Kd5 {[%clk 0:00:48]}  Kc7 {[%clk 0:00:05]} 62. Kc5 {[%clk 0:00:48]}  Kb7 {[%clk 0:00:05]} 63. Rb6+ {[%clk 0:00:48]}  Ka7 {[%clk 0:00:06]} 64. Rh6 {[%clk 0:00:48]}  h4 {[%clk 0:00:03]} 65. Kb5 {[%clk 0:00:48]}  Rb3+ {[%clk 0:00:03]} 66. Kc4 {[%clk 0:00:47]}  Rh3 {[%clk 0:00:03]} 67. Kb4 {[%clk 0:00:46]}  Rh2 {[%clk 0:00:02]} 68. Rh7+ {[%clk 0:00:47]}  Ka6 {[%clk 0:00:02]} 69. Rh6+ {[%clk 0:00:48]}  Ka7 {[%clk 0:00:03]} 70. Kb5 {[%clk 0:00:48]}  Rb2+ {[%clk 0:00:03]} 71. Ka4 {[%clk 0:00:48]}  Ra2+ {[%clk 0:00:03]} 72. Kb4 {[%clk 0:00:49]}  Rb2+ {[%clk 0:00:03]} 73. Kc3 {[%clk 0:00:49]}  Rh2 {[%clk 0:00:03]} 74. Kc4 {[%clk 0:00:49]}  Rh1 {[%clk 0:00:03]} 75. Kb4 {[%clk 0:00:46]}  Rb1+ {[%clk 0:00:04]} 76. Ka4 {[%clk 0:00:47]}  Ra1+ {[%clk 0:00:04]} 77. Kb5 {[%clk 0:00:47]}  Rb1+ {[%clk 0:00:05]} 78. Kc6 {[%clk 0:00:46]}  Rc1+ {[%clk 0:00:05]} 79. Kd5 {[%clk 0:00:46]}  Rh1 {[%clk 0:00:05]} 80. Ke4 {[%clk 0:00:44]}  Re1+ {[%clk 0:00:05]} 81. Kf3 {[%clk 0:00:45]}  Ra1 {[%clk 0:00:06]} 82. Rxh4 {[%clk 0:00:45]}  Rxa5 {[%clk 0:00:05]} 83. Rh7+ {[%clk 0:00:46]}  Kb6 {[%clk 0:00:06]} 84. Ke4 {[%clk 0:00:47]}  Rc5 {[%clk 0:00:05]} 85. Kd4 {[%clk 0:00:47]}  Rc8 {[%clk 0:00:06]} 86. Rh6+ {[%clk 0:00:47]}  Kb5 {[%clk 0:00:06]} 87. Rh7 {[%clk 0:00:48]}  Kb4 {[%clk 0:00:06]} 88. Ke5 {[%clk 0:00:49]}  Kc5 {[%clk 0:00:06]} 89. Rh1 {[%clk 0:00:48]}  Re8+ {[%clk 0:00:07]} 90. Kf6 {[%clk 0:00:49]}  Kd5 {[%clk 0:00:07]} 91. Rd1+ {[%clk 0:00:49]}  Kc4 {[%clk 0:00:07]} 92. Kf7 {[%clk 0:00:50]}  Re2 {[%clk 0:00:07]} 93. Kf6 {[%clk 0:00:50]}  Kc3 {[%clk 0:00:07]} 94. Kf5 {[%clk 0:00:51]}  Re8 {[%clk 0:00:07]} 95. Rd7 {[%clk 0:00:51]}  Kc4 {[%clk 0:00:07]} 96. Rc7+ {[%clk 0:00:51]}  Kd5 {[%clk 0:00:07]} 97. Ra7 {[%clk 0:00:52]}  Rf8+ {[%clk 0:00:07]} 98. Kg6 {[%clk 0:00:52]}  Rf1 {[%clk 0:00:07]} 99. Ra5+ {[%clk 0:00:52]}  Ke4 {[%clk 0:00:07]} 100. Kg5 {[%clk 0:00:53]}  Kd4 {[%clk 0:00:07]} 101. Ra4+ {[%clk 0:00:52]}  Ke5 {[%clk 0:00:07]} 102. Kg4 {[%clk 0:00:52]}  Rg1+ {[%clk 0:00:07]} 103. Kf3 {[%clk 0:00:53]}  Rg8 {[%clk 0:00:08]} 104. Ke3 {[%clk 0:00:52]}  Rg3+ {[%clk 0:00:07]} 105. Kf2 {[%clk 0:00:53]}  Rg8 {[%clk 0:00:08]} 106. Kf3 {[%clk 0:00:53]}  Kd5 {[%clk 0:00:08]} 107. Ke3 {[%clk 0:00:53]}  Rg3+ {[%clk 0:00:08]} 108. Kf4 {[%clk 0:00:54]}  Rg8 {[%clk 0:00:07]} 109. Ra1 {[%clk 0:00:54]}  Kc4 {[%clk 0:00:07]} 110. Ke5 {[%clk 0:00:53]}  Kd3 {[%clk 0:00:08]} 111. Ra3+ {[%clk 0:00:53]}  Kc4 {[%clk 0:00:07]} 112. Kd6 {[%clk 0:00:53]}  Rg6+ {[%clk 0:00:07]} 113. Ke5 {[%clk 0:00:53]}  Rg5+ {[%clk 0:00:08]} 114. Kf4 {[%clk 0:00:54]}  Rg8 {[%clk 0:00:08]} 115. Ra7 {[%clk 0:00:53]}  Re8 {[%clk 0:00:08]} 116. Kf5 {[%clk 0:00:53]}  Kd4 {[%clk 0:00:08]} 117. Ra1 {[%clk 0:00:54]}  Re2 {[%clk 0:00:08]} 118. Rd1+ {[%clk 0:00:53]}  Kc3 {[%clk 0:00:08]} 119. Kf4 {[%clk 0:00:53]}  Re8 {[%clk 0:00:08]} 120. Rd7 {[%clk 0:00:53]}  Kc4 {[%clk 0:00:09]} 121. Rc7+ {[%clk 0:00:53]}  Kd5 {[%clk 0:00:09]} 122. Ra7 {[%clk 0:00:54]}  Rf8+ {[%clk 0:00:09]} 123. Ke3 {[%clk 0:00:54]}  Re8+ {[%clk 0:00:10]} 124. Kd3 {[%clk 0:00:54]}  Rg8 {[%clk 0:00:11]} 125. Ra5+ {[%clk 0:00:55]}  Kc6 {[%clk 0:00:11]} 126. Ke4 {[%clk 0:00:56]}  Re8+ {[%clk 0:00:11]} 127. Kd4 {[%clk 0:00:56]}  Rg8 {[%clk 0:00:11]} 128. Ra6+ {[%clk 0:00:56]}  Kb5 {[%clk 0:00:11]} 129. Rh6 {[%clk 0:00:56]}  Rg4+ {[%clk 0:00:10]} 130. Kd5 {[%clk 0:00:57]}  Rg1 {[%clk 0:00:10]} 131. Rh8 {[%clk 0:00:56]}  Rd1+ {[%clk 0:00:11]} 132. Ke4 {[%clk 0:00:57]}  Kc5 {[%clk 0:00:11]} 1/2-1/2


[Site "https://www.chess.com"]

[Event "Titled Tuesday Blitz May 9 Late 2023"]
[White "Kucuksari, Kaan"]
[Black "Gatterer, Florian"]
[WhiteFideId "6380166"]
[BlackFideId "811688"]
[WhiteElo "2364"]
[BlackElo "2221"]
[Result "1-0"]
[Round "02"]
[TimeControl "180+2"]
[Date "2023.05.09"]
[WhiteClock "0:00:08"]
[BlackClock "0:00:00"]

1. e4 {[%clk 0:03:00]}  c5 {[%clk 0:02:57]} 2. Nf3 {[%clk 0:03:01]}  e6 {[%clk 0:02:57]} 3. d4 {[%clk 0:03:01]}  cxd4 {[%clk 0:02:58]} 4. Nxd4 {[%clk 0:03:02]}  Nf6 {[%clk 0:02:57]} 5. Nc3 {[%clk 0:03:01]}  Nc6 {[%clk 0:02:57]} 6. Be3 {[%clk 0:03:00]}  Bb4 {[%clk 0:02:56]} 7. Qd3 {[%clk 0:02:59]}  d5 {[%clk 0:02:51]} 8. exd5 {[%clk 0:02:54]}  Nxd5 {[%clk 0:02:49]} 9. Nxc6 {[%clk 0:02:49]}  bxc6 {[%clk 0:02:47]} 10. Bd2 {[%clk 0:02:46]}  O-O {[%clk 0:02:29]} 11. Nxd5 {[%clk 0:02:36]}  Bxd2+ {[%clk 0:02:28]} 12. Qxd2 {[%clk 0:02:36]}  cxd5 {[%clk 0:02:25]} 13. Be2 {[%clk 0:02:37]}  a5 {[%clk 0:02:21]} 14. O-O {[%clk 0:02:36]}  Ba6 {[%clk 0:02:21]} 15. Bxa6 {[%clk 0:02:35]}  Rxa6 {[%clk 0:02:20]} 16. Rac1 {[%clk 0:02:22]}  Qc7 {[%clk 0:02:14]} 17. c3 {[%clk 0:02:10]}  a4 {[%clk 0:02:11]} 18. Rfe1 {[%clk 0:02:06]}  Rc8 {[%clk 0:01:59]} 19. h4 {[%clk 0:02:01]}  Rb6 {[%clk 0:01:54]} 20. g3 {[%clk 0:01:56]}  Qb7 {[%clk 0:01:52]} 21. Re2 {[%clk 0:01:53]}  Rb8 {[%clk 0:01:50]} 22. Rc2 {[%clk 0:01:50]}  Rc8 {[%clk 0:01:50]} 23. c4 {[%clk 0:01:44]}  Rbc6 {[%clk 0:01:32]} 24. Qa5 {[%clk 0:01:30]}  Ra8 {[%clk 0:01:04]} 25. Qb5 {[%clk 0:01:29]}  Rb6 {[%clk 0:01:02]} 26. Qc5 {[%clk 0:01:29]}  Rc8 {[%clk 0:00:56]} 27. Qa3 {[%clk 0:00:55]}  Rxc4 {[%clk 0:00:40]} 28. Rxc4 {[%clk 0:00:54]}  dxc4 {[%clk 0:00:40]} 29. Qxa4 {[%clk 0:00:54]}  h6 {[%clk 0:00:26]} 30. Qxc4 {[%clk 0:00:49]}  Rxb2 {[%clk 0:00:22]} 31. Rxb2 {[%clk 0:00:46]}  Qxb2 {[%clk 0:00:22]} 32. a4 {[%clk 0:00:46]}  Qa1+ {[%clk 0:00:20]} 33. Kg2 {[%clk 0:00:45]}  Kh7 {[%clk 0:00:20]} 34. Qe4+ {[%clk 0:00:38]}  g6 {[%clk 0:00:19]} 35. h5 {[%clk 0:00:33]}  Kg7 {[%clk 0:00:13]} 36. hxg6 {[%clk 0:00:33]}  fxg6 {[%clk 0:00:13]} 37. Qb7+ {[%clk 0:00:33]}  Kf6 {[%clk 0:00:13]} 38. Qb4 {[%clk 0:00:32]}  Qa2 {[%clk 0:00:09]} 39. Qf8+ {[%clk 0:00:28]}  Ke5 {[%clk 0:00:05]} 40. Qf4+ {[%clk 0:00:26]}  Kd5 {[%clk 0:00:05]} 41. Qxh6 {[%clk 0:00:10]}  Qxa4 {[%clk 0:00:05]} 42. Qxg6 {[%clk 0:00:10]}  Qc6 {[%clk 0:00:03]} 43. Qg4 {[%clk 0:00:09]}  Kd6+ {[%clk 0:00:03]} 44. Qf3 {[%clk 0:00:09]}  Qc5 {[%clk 0:00:03]} 45. Qf4+ {[%clk 0:00:09]}  Ke7 {[%clk 0:00:03]} 46. Qh4+ {[%clk 0:00:09]}  Kd7 {[%clk 0:00:03]} 47. Qf6 {[%clk 0:00:08]}  Qd5+ {[%clk 0:00:03]} 48. Qf3 {[%clk 0:00:08]}  Qe5 {[%clk 0:00:03]} 49. Qd3+ {[%clk 0:00:08]}  Ke7 {[%clk 0:00:02]} 50. Qa3+ {[%clk 0:00:08]}  Kf7 {[%clk 0:00:02]} 51. Qa7+ {[%clk 0:00:08]}  Kf6 {[%clk 0:00:02]} 52. Qb7 {[%clk 0:00:07]}  Qf5 {[%clk 0:00:01]} 53. Qa8 {[%clk 0:00:06]}  Kg6 {[%clk 0:00:02]} 54. Qe8+ {[%clk 0:00:06]}  Kh6 {[%clk 0:00:02]} 55. Qh8+ {[%clk 0:00:05]}  Kg6 {[%clk 0:00:02]} 56. Qh4 {[%clk 0:00:06]}  Qd5+ {[%clk 0:00:02]} 57. Kh2 {[%clk 0:00:06]}  Qf5 {[%clk 0:00:02]} 58. Qd4 {[%clk 0:00:06]}  Kf7 {[%clk 0:00:02]} 59. Qe3 {[%clk 0:00:05]}  e5 {[%clk 0:00:02]} 60. Kg2 {[%clk 0:00:05]}  Ke6 {[%clk 0:00:03]} 61. Qb6+ {[%clk 0:00:05]}  Ke7 {[%clk 0:00:02]} 62. Qb7+ {[%clk 0:00:05]}  Ke6 {[%clk 0:00:03]} 63. Qc8+ {[%clk 0:00:05]}  Kf6 {[%clk 0:00:03]} 64. Qxf5+ {[%clk 0:00:06]}  Kxf5 {[%clk 0:00:04]} 65. Kf3 {[%clk 0:00:06]}  e4+ {[%clk 0:00:03]} 66. Ke3 {[%clk 0:00:06]}  Ke5 {[%clk 0:00:04]} 67. g4 {[%clk 0:00:07]}  Kd5 {[%clk 0:00:04]} 68. Kf4 {[%clk 0:00:07]}  Kd4 {[%clk 0:00:05]} 69. g5 {[%clk 0:00:07]}  e3 {[%clk 0:00:05]} 70. fxe3+ {[%clk 0:00:07]}  Kd3 {[%clk 0:00:05]} 71. e4 {[%clk 0:00:08]}  Ke2 {[%clk 0:00:00]} 72. g6 {[%clk 0:00:08]} 1-0


[Site "https://www.chess.com"]

[Event "Titled Tuesday Blitz May 9 Late 2023"]
[White "Schnaider, Ilan"]
[Black "Burke, Paul"]
[WhiteFideId "169013"]
[BlackFideId "2605767"]
[WhiteElo "2224"]
[BlackElo "1916"]
[Result "1-0"]
[Round "02"]
[TimeControl "180+2"]
[Date "2023.05.09"]
[WhiteClock "0:01:37"]
[BlackClock "0:00:53"]

1. e4 {[%clk 0:03:00]}  e5 {[%clk 0:02:59]} 2. Nf3 {[%clk 0:03:00]}  Nc6 {[%clk 0:02:59]} 3. Bc4 {[%clk 0:02:59]}  Be7 {[%clk 0:02:58]} 4. O-O {[%clk 0:02:56]}  Nf6 {[%clk 0:02:58]} 5. d4 {[%clk 0:02:56]}  exd4 {[%clk 0:02:56]} 6. e5 {[%clk 0:02:56]}  Ne4 {[%clk 0:02:54]} 7. c3 {[%clk 0:02:48]}  d5 {[%clk 0:02:52]} 8. Bb5 {[%clk 0:02:47]}  O-O {[%clk 0:02:47]} 9. cxd4 {[%clk 0:02:45]}  Bg4 {[%clk 0:02:43]} 10. Be3 {[%clk 0:02:43]}  f5 {[%clk 0:02:38]} 11. Nc3 {[%clk 0:02:36]}  f4 {[%clk 0:02:15]} 12. Bc1 {[%clk 0:02:16]}  Bxf3 {[%clk 0:02:02]} 13. gxf3 {[%clk 0:02:11]}  Ng5 {[%clk 0:01:54]} 14. Kh1 {[%clk 0:02:11]}  Qd7 {[%clk 0:01:35]} 15. Ne2 {[%clk 0:01:43]}  Nxf3 {[%clk 0:00:59]} 16. Nxf4 {[%clk 0:01:40]}  Ncxd4 {[%clk 0:00:53]} 17. Bxd7 {[%clk 0:01:37]} 1-0


[Site "https://www.chess.com"]

[Event "Titled Tuesday Blitz May 9 Late 2023"]
[White "Bluebaum, Matthias"]
[Black "Seletsky, Grigory"]
[WhiteFideId "24651516"]
[BlackFideId "14112191"]
[WhiteElo "2639"]
[BlackElo "2491"]
[Result "1-0"]
[Round "02"]
[TimeControl "180+2"]
[Date "2023.05.09"]
[WhiteClock "0:00:19"]
[BlackClock "0:00:04"]

1. d4 {[%clk 0:03:00]}  d6 {[%clk 0:02:59]} 2. Nf3 {[%clk 0:03:00]}  Nd7 {[%clk 0:02:58]} 3. c4 {[%clk 0:03:00]}  e5 {[%clk 0:02:58]} 4. Nc3 {[%clk 0:03:01]}  Ngf6 {[%clk 0:02:57]} 5. Bg5 {[%clk 0:03:01]}  Be7 {[%clk 0:02:58]} 6. e3 {[%clk 0:03:01]}  Ng8 {[%clk 0:02:56]} 7. Bxe7 {[%clk 0:03:01]}  Nxe7 {[%clk 0:02:56]} 8. Qc2 {[%clk 0:03:00]}  exd4 {[%clk 0:02:51]} 9. exd4 {[%clk 0:02:58]}  O-O {[%clk 0:02:51]} 10. Bd3 {[%clk 0:02:58]}  Nf6 {[%clk 0:02:50]} 11. h3 {[%clk 0:02:59]}  Re8 {[%clk 0:02:48]} 12. O-O-O {[%clk 0:02:59]}  Ng6 {[%clk 0:02:48]} 13. Rhe1 {[%clk 0:02:57]}  Bd7 {[%clk 0:02:42]} 14. Qd2 {[%clk 0:02:57]}  Rxe1 {[%clk 0:02:40]} 15. Rxe1 {[%clk 0:02:57]}  Qf8 {[%clk 0:02:40]} 16. g4 {[%clk 0:02:58]}  Re8 {[%clk 0:02:39]} 17. Rg1 {[%clk 0:02:45]}  c6 {[%clk 0:02:31]} 18. Bf5 {[%clk 0:02:39]}  Qe7 {[%clk 0:02:25]} 19. h4 {[%clk 0:02:39]}  Nf8 {[%clk 0:02:19]} 20. Bxd7 {[%clk 0:02:29]}  Qxd7 {[%clk 0:02:14]} 21. h5 {[%clk 0:02:23]}  Ne4 {[%clk 0:02:10]} 22. Qc2 {[%clk 0:02:01]}  Nxc3 {[%clk 0:01:57]} 23. bxc3 {[%clk 0:02:02]}  Qe6 {[%clk 0:01:51]} 24. Qd3 {[%clk 0:01:46]}  Qf6 {[%clk 0:01:48]} 25. g5 {[%clk 0:01:37]}  Qf4+ {[%clk 0:01:47]} 26. Kd1 {[%clk 0:01:37]}  Re7 {[%clk 0:01:25]} 27. Rg3 {[%clk 0:01:34]}  Re8 {[%clk 0:01:22]} 28. Rg2 {[%clk 0:01:21]}  Re7 {[%clk 0:01:19]} 29. Nd2 {[%clk 0:01:20]}  Qh4 {[%clk 0:01:11]} 30. Qf3 {[%clk 0:01:00]}  Ne6 {[%clk 0:00:57]} 31. g6 {[%clk 0:00:53]}  Ng5 {[%clk 0:00:46]} 32. gxh7+ {[%clk 0:00:53]}  Kh8 {[%clk 0:00:41]} 33. Qg4 {[%clk 0:00:51]}  Qxg4+ {[%clk 0:00:34]} 34. Rxg4 {[%clk 0:00:52]}  Nxh7 {[%clk 0:00:34]} 35. Rf4 {[%clk 0:00:43]}  Ng5 {[%clk 0:00:32]} 36. Rf5 {[%clk 0:00:40]}  f6 {[%clk 0:00:30]} 37. h6 {[%clk 0:00:36]}  Kh7 {[%clk 0:00:30]} 38. hxg7 {[%clk 0:00:37]}  Kxg7 {[%clk 0:00:31]} 39. Rf4 {[%clk 0:00:36]}  Kg6 {[%clk 0:00:31]} 40. Rg4 {[%clk 0:00:35]}  Rh7 {[%clk 0:00:27]} 41. Kc2 {[%clk 0:00:28]}  Kf5 {[%clk 0:00:28]} 42. Rg2 {[%clk 0:00:27]}  Rh3 {[%clk 0:00:27]} 43. Nf1 {[%clk 0:00:26]}  Rf3 {[%clk 0:00:20]} 44. Ne3+ {[%clk 0:00:26]}  Ke6 {[%clk 0:00:20]} 45. Kd3 {[%clk 0:00:24]}  Rf4 {[%clk 0:00:17]} 46. Rh2 {[%clk 0:00:22]}  Kf7 {[%clk 0:00:16]} 47. Ke2 {[%clk 0:00:21]}  Kg7 {[%clk 0:00:16]} 48. Rh1 {[%clk 0:00:19]}  Re4 {[%clk 0:00:14]} 49. f3 {[%clk 0:00:18]}  Rf4 {[%clk 0:00:13]} 50. Rf1 {[%clk 0:00:19]}  f5 {[%clk 0:00:12]} 51. Ng2 {[%clk 0:00:19]}  Ne6 {[%clk 0:00:04]} 52. Ke3 {[%clk 0:00:19]} 1-0


[Site "https://www.chess.com"]